[Event "Titled Tuesday Blitz December 13 Early 2022"]
[White "Petrovic, Aleksa"]
[Black "Kriti Mayur Patel"]
[WhiteFideId "967629"]
[BlackFideId "35061780"]
[WhiteElo "2230"]
[BlackElo "1306"]
[Result "1-0"]
[Round "10"]
[TimeControl "180+1"]
[Date "2022.12.14"]
[WhiteClock "0:01:40"]
[BlackClock "0:01:11"]

1. e4 {[%clk 0:03:00]}  e5 {[%clk 0:02:58]} 2. Nf3 {[%clk 0:03:00]}  Nc6 {[%clk 0:02:58]} 3. Bc4 {[%clk 0:03:00]}  Nf6 {[%clk 0:02:57]} 4. d4 {[%clk 0:02:59]}  exd4 {[%clk 0:02:57]} 5. O-O {[%clk 0:02:59]}  Nxe4 {[%clk 0:02:57]} 6. Nc3 {[%clk 0:02:59]}  dxc3 {[%clk 0:02:38]} 7. Bxf7+ {[%clk 0:02:59]}  Kxf7 {[%clk 0:02:35]} 8. Qd5+ {[%clk 0:02:59]}  Ke8 {[%clk 0:02:32]} 9. Re1 {[%clk 0:02:37]}  Ne7 {[%clk 0:02:20]} 10. Rxe4 {[%clk 0:02:32]}  c6 {[%clk 0:02:15]} 11. Qh5+ {[%clk 0:02:20]}  g6 {[%clk 0:02:15]} 12. Qe5 {[%clk 0:02:20]}  Rg8 {[%clk 0:02:09]} 13. Qd6 {[%clk 0:02:07]}  Qb6 {[%clk 0:01:48]} 14. Bg5 {[%clk 0:02:03]}  cxb2 {[%clk 0:01:38]} 15. Rxe7+ {[%clk 0:02:00]}  Kd8 {[%clk 0:01:30]} 16. Rg7+ {[%clk 0:01:42]}  Ke8 {[%clk 0:01:16]} 17. Qe5+ {[%clk 0:01:41]}  Be7 {[%clk 0:01:11]} 18. Qxe7# {[%clk 0:01:40]} 1-0


[Site "https://www.chess.com"]

[Event "Titled Tuesday Blitz December 13 Early 2022"]
[White "Piorun, Kacper"]
[Black "Paravyan, David"]
[WhiteFideId "1130420"]
[BlackFideId "4194985"]
[WhiteElo "2572"]
[BlackElo "2551"]
[Result "1-0"]
[Round "10"]
[TimeControl "180+1"]
[Date "2022.12.13"]
[WhiteClock "0:00:05"]
[BlackClock "0:00:06"]

1. d4 {[%clk 0:02:59]}  Nf6 {[%clk 0:02:59]} 2. Bg5 {[%clk 0:02:59]}  d5 {[%clk 0:02:59]} 3. Nd2 {[%clk 0:02:58]}  c5 {[%clk 0:02:58]} 4. e3 {[%clk 0:02:57]}  Nc6 {[%clk 0:02:58]} 5. Ngf3 {[%clk 0:02:54]}  cxd4 {[%clk 0:02:56]} 6. exd4 {[%clk 0:02:54]}  h6 {[%clk 0:02:56]} 7. Bf4 {[%clk 0:02:32]}  Bf5 {[%clk 0:02:54]} 8. Bb5 {[%clk 0:02:30]}  e6 {[%clk 0:02:52]} 9. O-O {[%clk 0:02:29]}  Bd6 {[%clk 0:02:51]} 10. Ne5 {[%clk 0:02:22]}  Rc8 {[%clk 0:02:27]} 11. c4 {[%clk 0:02:19]}  O-O {[%clk 0:02:26]} 12. Bxc6 {[%clk 0:02:09]}  bxc6 {[%clk 0:02:27]} 13. c5 {[%clk 0:02:10]}  Bb8 {[%clk 0:02:14]} 14. Qa4 {[%clk 0:01:38]}  Nd7 {[%clk 0:01:54]} 15. Bg3 {[%clk 0:01:02]}  Bxe5 {[%clk 0:01:36]} 16. Bxe5 {[%clk 0:01:01]}  Nxe5 {[%clk 0:01:33]} 17. dxe5 {[%clk 0:01:01]}  Qe7 {[%clk 0:01:33]} 18. Rfc1 {[%clk 0:00:53]}  f6 {[%clk 0:01:30]} 19. Qd4 {[%clk 0:00:48]}  a5 {[%clk 0:01:24]} 20. a3 {[%clk 0:00:45]}  Rb8 {[%clk 0:01:23]} 21. Re1 {[%clk 0:00:37]}  Rb5 {[%clk 0:01:19]} 22. Rac1 {[%clk 0:00:27]}  Rfb8 {[%clk 0:01:15]} 23. b3 {[%clk 0:00:27]}  fxe5 {[%clk 0:00:44]} 24. Rxe5 {[%clk 0:00:28]}  Qf6 {[%clk 0:00:44]} 25. Rce1 {[%clk 0:00:27]}  Qf8 {[%clk 0:00:34]} 26. g4 {[%clk 0:00:24]}  Bc2 {[%clk 0:00:27]} 27. Rxe6 {[%clk 0:00:23]}  Qxc5 {[%clk 0:00:24]} 28. Re8+ {[%clk 0:00:18]}  Rxe8 {[%clk 0:00:17]} 29. Rxe8+ {[%clk 0:00:19]}  Kh7 {[%clk 0:00:16]} 30. Qf4 {[%clk 0:00:18]}  Qc3 {[%clk 0:00:09]} 31. Qf7 {[%clk 0:00:09]}  Qxd2 {[%clk 0:00:03]} 32. Qg8+ {[%clk 0:00:09]}  Kg6 {[%clk 0:00:04]} 33. Re6+ {[%clk 0:00:09]}  Kg5 {[%clk 0:00:04]} 34. Qxg7+ {[%clk 0:00:10]}  Kh4 {[%clk 0:00:04]} 35. Rxh6+ {[%clk 0:00:10]}  Qxh6 {[%clk 0:00:05]} 36. Qxh6+ {[%clk 0:00:10]}  Kxg4 {[%clk 0:00:06]} 37. Qg7+ {[%clk 0:00:07]}  Kf4 {[%clk 0:00:04]} 38. Qg3+ {[%clk 0:00:08]}  Kf5 {[%clk 0:00:04]} 39. Qf3+ {[%clk 0:00:08]}  Ke6 {[%clk 0:00:03]} 40. Qe2+ {[%clk 0:00:07]}  Be4 {[%clk 0:00:04]} 41. f3 {[%clk 0:00:08]}  Rxb3 {[%clk 0:00:05]} 42. fxe4 {[%clk 0:00:08]}  Rxa3 {[%clk 0:00:04]} 43. exd5+ {[%clk 0:00:08]}  Kxd5 {[%clk 0:00:05]} 44. Qd2+ {[%clk 0:00:08]}  Kc4 {[%clk 0:00:05]} 45. Qd6 {[%clk 0:00:07]}  c5 {[%clk 0:00:05]} 46. h4 {[%clk 0:00:06]}  a4 {[%clk 0:00:04]} 47. h5 {[%clk 0:00:06]}  Ra1+ {[%clk 0:00:04]} 48. Kg2 {[%clk 0:00:07]}  Ra2+ {[%clk 0:00:05]} 49. Kg3 {[%clk 0:00:06]}  Ra3+ {[%clk 0:00:02]} 50. Kg4 {[%clk 0:00:06]}  Ra1 {[%clk 0:00:03]} 51. Qe6+ {[%clk 0:00:06]}  Kb4 {[%clk 0:00:03]} 52. Qb6+ {[%clk 0:00:06]}  Kc4 {[%clk 0:00:03]} 53. Qe6+ {[%clk 0:00:06]}  Kb4 {[%clk 0:00:04]} 54. h6 {[%clk 0:00:07]}  a3 {[%clk 0:00:04]} 55. h7 {[%clk 0:00:05]}  a2 {[%clk 0:00:04]} 56. Qe4+ {[%clk 0:00:04]}  c4 {[%clk 0:00:04]} 57. h8=Q {[%clk 0:00:04]}  Rg1+ {[%clk 0:00:04]} 58. Kf5 {[%clk 0:00:04]}  Rf1+ {[%clk 0:00:03]} 59. Ke6 {[%clk 0:00:04]}  a1=Q {[%clk 0:00:04]} 60. Qb8+ {[%clk 0:00:03]}  Kc3 {[%clk 0:00:04]} 61. Qe3+ {[%clk 0:00:04]}  Kc2 {[%clk 0:00:05]} 62. Qe2+ {[%clk 0:00:04]}  Kc3 {[%clk 0:00:05]} 63. Qbe5+ {[%clk 0:00:04]}  Kb3 {[%clk 0:00:06]} 64. Qb5+ {[%clk 0:00:04]}  Ka3 {[%clk 0:00:06]} 65. Qa6+ {[%clk 0:00:04]}  Kb3 {[%clk 0:00:06]} 66. Qaxc4+ {[%clk 0:00:04]}  Ka3 {[%clk 0:00:06]} 67. Qed3+ {[%clk 0:00:05]}  Kb2 {[%clk 0:00:06]} 68. Qdb3# {[%clk 0:00:05]} 1-0


[Site "https://www.chess.com"]

[Event "Titled Tuesday Blitz December 13 Early 2022"]
[White "Prieto Aranguren, Alain"]
[Black "Fabris, Alberto"]
[WhiteFideId "2268906"]
[BlackFideId "801348"]
[WhiteElo "2209"]
[BlackElo "2176"]
[Result "1-0"]
[Round "10"]
[TimeControl "180+1"]
[Date "2022.12.14"]
[WhiteClock "0:00:23"]
[BlackClock "0:00:12"]

1. e4 {[%clk 0:03:00]}  c5 {[%clk 0:02:59]} 2. Bc4 {[%clk 0:02:49]}  e6 {[%clk 0:02:59]} 3. Nf3 {[%clk 0:02:35]}  Nc6 {[%clk 0:02:59]} 4. O-O {[%clk 0:02:34]}  d5 {[%clk 0:02:48]} 5. exd5 {[%clk 0:02:33]}  exd5 {[%clk 0:02:48]} 6. Re1+ {[%clk 0:02:33]}  Be7 {[%clk 0:02:48]} 7. Bb5 {[%clk 0:02:33]}  Bd7 {[%clk 0:02:45]} 8. d4 {[%clk 0:02:33]}  c4 {[%clk 0:02:44]} 9. Bxc6 {[%clk 0:02:29]}  Bxc6 {[%clk 0:02:39]} 10. Ne5 {[%clk 0:02:26]}  Nf6 {[%clk 0:02:38]} 11. c3 {[%clk 0:02:24]}  O-O {[%clk 0:02:37]} 12. Bg5 {[%clk 0:02:24]}  Qc7 {[%clk 0:02:35]} 13. Nd2 {[%clk 0:02:20]}  Rfe8 {[%clk 0:02:25]} 14. Ndf3 {[%clk 0:02:19]}  Ne4 {[%clk 0:02:18]} 15. Bxe7 {[%clk 0:02:18]}  Rxe7 {[%clk 0:02:18]} 16. Nxc6 {[%clk 0:02:14]}  bxc6 {[%clk 0:02:15]} 17. Ne5 {[%clk 0:02:14]}  c5 {[%clk 0:02:11]} 18. Nf3 {[%clk 0:01:55]}  Rae8 {[%clk 0:02:03]} 19. dxc5 {[%clk 0:01:53]}  Qxc5 {[%clk 0:02:01]} 20. Qd4 {[%clk 0:01:52]}  Qxd4 {[%clk 0:01:58]} 21. Nxd4 {[%clk 0:01:50]}  Nc5 {[%clk 0:01:56]} 22. Rxe7 {[%clk 0:01:48]}  Rxe7 {[%clk 0:01:54]} 23. Kf1 {[%clk 0:01:37]}  Nd3 {[%clk 0:01:54]} 24. Rb1 {[%clk 0:01:35]}  Rb7 {[%clk 0:01:46]} 25. b4 {[%clk 0:01:24]}  cxb3 {[%clk 0:01:39]} 26. Rxb3 {[%clk 0:01:18]}  Rxb3 {[%clk 0:01:36]} 27. axb3 {[%clk 0:01:14]}  Kf8 {[%clk 0:01:28]} 28. Ke2 {[%clk 0:01:10]}  Nf4+ {[%clk 0:01:25]} 29. Kf3 {[%clk 0:01:07]}  Ne6 {[%clk 0:01:25]} 30. Nxe6+ {[%clk 0:00:55]}  fxe6 {[%clk 0:01:25]} 31. Kf4 {[%clk 0:00:55]}  a5 {[%clk 0:01:21]} 32. Ke5 {[%clk 0:00:54]}  Ke7 {[%clk 0:01:21]} 33. f4 {[%clk 0:00:50]}  g6 {[%clk 0:01:06]} 34. g4 {[%clk 0:00:48]}  h5 {[%clk 0:00:51]} 35. gxh5 {[%clk 0:00:42]}  gxh5 {[%clk 0:00:51]} 36. h4 {[%clk 0:00:41]}  Kd7 {[%clk 0:00:22]} 37. f5 {[%clk 0:00:38]}  exf5 {[%clk 0:00:21]} 38. Kxd5 {[%clk 0:00:38]}  f4 {[%clk 0:00:14]} 39. Ke4 {[%clk 0:00:38]}  Ke6 {[%clk 0:00:13]} 40. Kxf4 {[%clk 0:00:38]}  Kd5 {[%clk 0:00:14]} 41. Kg5 {[%clk 0:00:37]}  Ke4 {[%clk 0:00:13]} 42. Kxh5 {[%clk 0:00:35]}  Kd3 {[%clk 0:00:13]} 43. c4 {[%clk 0:00:26]}  Kc3 {[%clk 0:00:09]} 44. c5 {[%clk 0:00:26]}  Kxb3 {[%clk 0:00:09]} 45. c6 {[%clk 0:00:26]}  a4 {[%clk 0:00:10]} 46. c7 {[%clk 0:00:26]}  a3 {[%clk 0:00:11]} 47. c8=Q {[%clk 0:00:25]}  a2 {[%clk 0:00:11]} 48. Qa8 {[%clk 0:00:25]}  a1=Q {[%clk 0:00:12]} 49. Qxa1 {[%clk 0:00:23]} 1-0


[Site "https://www.chess.com"]

[Event "Titled Tuesday Blitz December 13 Early 2022"]
[White "Samunenkov, Ihor"]
[Black "Yilmaz, Mustafa"]
[WhiteFideId "14187086"]
[BlackFideId "6302718"]
[WhiteElo "2442"]
[BlackElo "2564"]
[Result "1-0"]
[Round "10"]
[TimeControl "180+1"]
[Date "2022.12.13"]
[WhiteClock "0:00:07"]
[BlackClock "0:00:06"]

1. d4 {[%clk 0:03:00]}  Nf6 {[%clk 0:02:56]} 2. Nf3 {[%clk 0:03:00]}  g6 {[%clk 0:02:55]} 3. Nbd2 {[%clk 0:02:58]}  d5 {[%clk 0:02:53]} 4. e3 {[%clk 0:02:58]}  Bg7 {[%clk 0:02:54]} 5. b4 {[%clk 0:02:58]}  O-O {[%clk 0:02:53]} 6. c4 {[%clk 0:02:59]}  a5 {[%clk 0:02:48]} 7. b5 {[%clk 0:02:57]}  c5 {[%clk 0:02:48]} 8. Bb2 {[%clk 0:02:57]}  cxd4 {[%clk 0:02:46]} 9. Bxd4 {[%clk 0:02:55]}  Be6 {[%clk 0:02:41]} 10. c5 {[%clk 0:02:41]}  Nbd7 {[%clk 0:02:41]} 11. Bd3 {[%clk 0:02:11]}  Bg4 {[%clk 0:02:29]} 12. h3 {[%clk 0:01:48]}  Bxf3 {[%clk 0:02:27]} 13. Nxf3 {[%clk 0:01:49]}  Qc7 {[%clk 0:02:27]} 14. b6 {[%clk 0:01:21]}  Qb8 {[%clk 0:02:22]} 15. Bb5 {[%clk 0:01:21]}  e5 {[%clk 0:02:16]} 16. Bb2 {[%clk 0:01:21]}  e4 {[%clk 0:02:08]} 17. Nd4 {[%clk 0:01:18]}  Nxc5 {[%clk 0:02:07]} 18. O-O {[%clk 0:01:18]}  Qd6 {[%clk 0:02:05]} 19. Rc1 {[%clk 0:01:16]}  Qxb6 {[%clk 0:02:03]} 20. Qe2 {[%clk 0:01:14]}  Rac8 {[%clk 0:02:01]} 21. a4 {[%clk 0:01:13]}  Nfd7 {[%clk 0:01:58]} 22. Ba3 {[%clk 0:01:12]}  Ne5 {[%clk 0:01:50]} 23. Qc2 {[%clk 0:00:58]}  Qd8 {[%clk 0:00:59]} 24. Bxc5 {[%clk 0:00:56]}  b6 {[%clk 0:00:59]} 25. Nc6 {[%clk 0:00:48]}  Rxc6 {[%clk 0:00:53]} 26. Bxc6 {[%clk 0:00:48]}  bxc5 {[%clk 0:00:54]} 27. Qxc5 {[%clk 0:00:45]}  Nd3 {[%clk 0:00:46]} 28. Qxd5 {[%clk 0:00:44]}  Nxc1 {[%clk 0:00:44]} 29. Rxc1 {[%clk 0:00:45]}  Qh4 {[%clk 0:00:32]} 30. Qxe4 {[%clk 0:00:34]}  Qf6 {[%clk 0:00:32]} 31. Bd5 {[%clk 0:00:33]}  h5 {[%clk 0:00:30]} 32. h4 {[%clk 0:00:29]}  Qd6 {[%clk 0:00:27]} 33. Qc4 {[%clk 0:00:27]}  Be5 {[%clk 0:00:25]} 34. Rb1 {[%clk 0:00:24]}  Kg7 {[%clk 0:00:24]} 35. e4 {[%clk 0:00:15]}  Qf6 {[%clk 0:00:24]} 36. g3 {[%clk 0:00:14]}  Qf3 {[%clk 0:00:24]} 37. Rb3 {[%clk 0:00:12]}  Qg4 {[%clk 0:00:24]} 38. Kg2 {[%clk 0:00:11]}  Rc8 {[%clk 0:00:24]} 39. Qd3 {[%clk 0:00:07]}  Rc1 {[%clk 0:00:15]} 40. Rb7 {[%clk 0:00:07]}  Bc7 {[%clk 0:00:06]} 41. Qd2 {[%clk 0:00:07]} 1-0


[Site "https://www.chess.com"]

[Event "Titled Tuesday Blitz December 13 Early 2022"]
[White "Sarana, Alexey"]
[Black "Deac, Bogdan-Daniel"]
[WhiteFideId "24133795"]
[BlackFideId "1226380"]
[WhiteElo "2708"]
[BlackElo "2649"]
[Result "1-0"]
[Round "10"]
[TimeControl "180+1"]
[Date "2022.12.13"]
[WhiteClock "0:00:42"]
[BlackClock "0:00:02"]

1. d4 {[%clk 0:03:00]}  d5 {[%clk 0:02:59]} 2. c4 {[%clk 0:03:00]}  c6 {[%clk 0:03:00]} 3. Nf3 {[%clk 0:03:00]}  Nf6 {[%clk 0:03:01]} 4. Nc3 {[%clk 0:03:00]}  e6 {[%clk 0:03:01]} 5. e3 {[%clk 0:03:01]}  Nbd7 {[%clk 0:03:02]} 6. Bd3 {[%clk 0:03:00]}  dxc4 {[%clk 0:02:55]} 7. Bxc4 {[%clk 0:03:01]}  b5 {[%clk 0:02:56]} 8. Bd3 {[%clk 0:03:00]}  Bb7 {[%clk 0:02:56]} 9. O-O {[%clk 0:02:52]}  a6 {[%clk 0:02:55]} 10. e4 {[%clk 0:02:43]}  c5 {[%clk 0:02:55]} 11. d5 {[%clk 0:02:34]}  Qc7 {[%clk 0:02:54]} 12. dxe6 {[%clk 0:02:31]}  fxe6 {[%clk 0:02:53]} 13. Qe2 {[%clk 0:02:32]}  c4 {[%clk 0:01:22]} 14. Bc2 {[%clk 0:02:32]}  Bd6 {[%clk 0:01:23]} 15. Nd4 {[%clk 0:02:32]}  Nc5 {[%clk 0:01:19]} 16. f4 {[%clk 0:02:32]}  e5 {[%clk 0:01:18]} 17. Ndxb5 {[%clk 0:02:31]}  axb5 {[%clk 0:01:12]} 18. Nxb5 {[%clk 0:02:32]}  Qc6 {[%clk 0:01:07]} 19. Nxd6+ {[%clk 0:02:32]}  Qxd6 {[%clk 0:01:07]} 20. fxe5 {[%clk 0:02:33]}  Qxe5 {[%clk 0:01:06]} 21. Rf5 {[%clk 0:02:33]}  Qe7 {[%clk 0:00:59]} 22. Qxc4 {[%clk 0:02:34]}  Ncd7 {[%clk 0:00:24]} 23. Bg5 {[%clk 0:02:24]}  h6 {[%clk 0:00:21]} 24. Bh4 {[%clk 0:02:19]}  Rc8 {[%clk 0:00:15]} 25. Qb3 {[%clk 0:02:19]}  g5 {[%clk 0:00:08]} 26. Bf2 {[%clk 0:02:11]}  Bc6 {[%clk 0:00:06]} 27. Re1 {[%clk 0:02:00]}  Ng4 {[%clk 0:00:05]} 28. Bd4 {[%clk 0:01:47]}  Rf8 {[%clk 0:00:05]} 29. h3 {[%clk 0:01:41]}  Rxf5 {[%clk 0:00:04]} 30. hxg4 {[%clk 0:01:37]}  Rf4 {[%clk 0:00:04]} 31. Qg8+ {[%clk 0:01:33]}  Qf8 {[%clk 0:00:02]} 32. Qg6+ {[%clk 0:01:32]}  Kd8 {[%clk 0:00:02]} 33. Rd1 {[%clk 0:01:17]}  Kc7 {[%clk 0:00:02]} 34. Be3 {[%clk 0:00:57]}  Rf6 {[%clk 0:00:01]} 35. Qh5 {[%clk 0:00:53]}  Re8 {[%clk 0:00:01]} 36. Qh2+ {[%clk 0:00:44]}  Kb7 {[%clk 0:00:02]} 37. b4 {[%clk 0:00:45]}  Qe7 {[%clk 0:00:01]} 38. b5 {[%clk 0:00:44]}  Bxb5 {[%clk 0:00:02]} 39. Rb1 {[%clk 0:00:44]}  Ka6 {[%clk 0:00:02]} 40. Qc7 {[%clk 0:00:42]}  Rc6 {[%clk 0:00:02]} 41. Qa7# {[%clk 0:00:42]} 1-0


[Site "https://www.chess.com"]

[Event "Titled Tuesday Blitz December 13 Early 2022"]
[White "Sargissyan, Sargis"]
[Black "Tarnowska, Aleksandra"]
[WhiteFideId "13303210"]
[BlackFideId "1180967"]
[WhiteElo "2109"]
[BlackElo "1776"]
[Result "1-0"]
[Round "10"]
[TimeControl "180+1"]
[Date "2022.12.14"]
[WhiteClock "0:01:48"]
[BlackClock "0:00:02"]

1. c4 {[%clk 0:03:00]}  e5 {[%clk 0:02:57]} 2. Nc3 {[%clk 0:03:01]}  Nf6 {[%clk 0:02:55]} 3. Nf3 {[%clk 0:03:01]}  Bb4 {[%clk 0:02:55]} 4. Nxe5 {[%clk 0:03:00]}  O-O {[%clk 0:02:50]} 5. e3 {[%clk 0:03:00]}  d6 {[%clk 0:02:46]} 6. Nf3 {[%clk 0:03:00]}  Bxc3 {[%clk 0:02:41]} 7. bxc3 {[%clk 0:02:59]}  Bg4 {[%clk 0:02:40]} 8. h3 {[%clk 0:02:59]}  Bh5 {[%clk 0:02:40]} 9. Be2 {[%clk 0:02:59]}  Nbd7 {[%clk 0:02:38]} 10. d3 {[%clk 0:03:00]}  Re8 {[%clk 0:02:32]} 11. e4 {[%clk 0:03:00]}  Nc5 {[%clk 0:02:27]} 12. Be3 {[%clk 0:02:57]}  Ncd7 {[%clk 0:01:42]} 13. g4 {[%clk 0:02:46]}  Bg6 {[%clk 0:01:42]} 14. Nd2 {[%clk 0:02:41]}  h6 {[%clk 0:01:22]} 15. h4 {[%clk 0:02:35]}  c6 {[%clk 0:01:19]} 16. g5 {[%clk 0:02:35]}  hxg5 {[%clk 0:01:08]} 17. hxg5 {[%clk 0:02:36]}  Nh7 {[%clk 0:01:08]} 18. f4 {[%clk 0:02:36]}  f5 {[%clk 0:01:04]} 19. Bh5 {[%clk 0:02:31]}  Ndf8 {[%clk 0:00:46]} 20. Bxg6 {[%clk 0:02:28]}  Nxg6 {[%clk 0:00:46]} 21. Rxh7 {[%clk 0:02:27]}  Kxh7 {[%clk 0:00:46]} 22. Qh5+ {[%clk 0:02:26]}  Kg8 {[%clk 0:00:46]} 23. Qxg6 {[%clk 0:02:27]}  fxe4 {[%clk 0:00:43]} 24. dxe4 {[%clk 0:02:25]}  d5 {[%clk 0:00:36]} 25. Bd4 {[%clk 0:02:19]}  Qc7 {[%clk 0:00:11]} 26. cxd5 {[%clk 0:01:57]}  cxd5 {[%clk 0:00:11]} 27. e5 {[%clk 0:01:58]}  b5 {[%clk 0:00:09]} 28. Kf2 {[%clk 0:01:51]}  Rac8 {[%clk 0:00:08]} 29. Rh1 {[%clk 0:01:51]}  Qd7 {[%clk 0:00:05]} 30. f5 {[%clk 0:01:48]}  b4 {[%clk 0:00:03]} 31. e6 {[%clk 0:01:48]}  Qd6 {[%clk 0:00:02]} 32. Qf7# {[%clk 0:01:48]} 1-0


[Site "https://www.chess.com"]

[Event "Titled Tuesday Blitz December 13 Early 2022"]
[White "Schut, Han"]
[Black "Orlov, Georgi"]
[WhiteFideId "1005561"]
[BlackFideId "2011271"]
[WhiteElo "2024"]
[BlackElo "2509"]
[Result "0-1"]
[Round "10"]
[TimeControl "180+1"]
[Date "2022.12.14"]
[WhiteClock "0:00:02"]
[BlackClock "0:00:45"]

1. e4 {[%clk 0:03:00]}  c5 {[%clk 0:02:57]} 2. Nf3 {[%clk 0:02:56]}  Nc6 {[%clk 0:02:55]} 3. d4 {[%clk 0:02:56]}  cxd4 {[%clk 0:02:55]} 4. Nxd4 {[%clk 0:02:57]}  e5 {[%clk 0:02:55]} 5. Nb5 {[%clk 0:02:57]}  a6 {[%clk 0:02:54]} 6. Nd6+ {[%clk 0:02:57]}  Bxd6 {[%clk 0:02:54]} 7. Qxd6 {[%clk 0:02:58]}  Qf6 {[%clk 0:02:54]} 8. Qd2 {[%clk 0:02:58]}  Qg6 {[%clk 0:02:44]} 9. Nc3 {[%clk 0:02:57]}  d5 {[%clk 0:02:39]} 10. f3 {[%clk 0:02:37]}  Nf6 {[%clk 0:02:27]} 11. Bd3 {[%clk 0:02:33]}  Nb4 {[%clk 0:02:14]} 12. Nxd5 {[%clk 0:01:39]}  Nfxd5 {[%clk 0:02:11]} 13. exd5 {[%clk 0:01:34]}  Nxd3+ {[%clk 0:02:09]} 14. cxd3 {[%clk 0:01:26]}  Bf5 {[%clk 0:02:06]} 15. O-O {[%clk 0:01:21]}  O-O {[%clk 0:01:55]} 16. d4 {[%clk 0:01:14]}  e4 {[%clk 0:01:53]} 17. Qg5 {[%clk 0:01:00]}  Rad8 {[%clk 0:01:43]} 18. Qxg6 {[%clk 0:01:00]}  Bxg6 {[%clk 0:01:42]} 19. fxe4 {[%clk 0:00:52]}  Bxe4 {[%clk 0:01:41]} 20. Be3 {[%clk 0:00:40]}  Bxd5 {[%clk 0:01:37]} 21. b3 {[%clk 0:00:37]}  Rfe8 {[%clk 0:01:36]} 22. Rfe1 {[%clk 0:00:37]}  Rc8 {[%clk 0:01:32]} 23. Bf2 {[%clk 0:00:33]}  Rxe1+ {[%clk 0:01:15]} 24. Rxe1 {[%clk 0:00:34]}  f6 {[%clk 0:01:13]} 25. h3 {[%clk 0:00:19]}  Rc2 {[%clk 0:01:12]} 26. Re7 {[%clk 0:00:14]}  Rxa2 {[%clk 0:01:06]} 27. Rd7 {[%clk 0:00:14]}  Bc6 {[%clk 0:01:04]} 28. Rd8+ {[%clk 0:00:14]}  Kf7 {[%clk 0:01:03]} 29. d5 {[%clk 0:00:15]}  Rd2 {[%clk 0:00:56]} 30. dxc6 {[%clk 0:00:02]}  Rxd8 {[%clk 0:00:52]} 31. c7 {[%clk 0:00:02]}  Rd1+ {[%clk 0:00:46]} 32. Kh2 {[%clk 0:00:02]}  Rc1 {[%clk 0:00:45]} 0-1


[Site "https://www.chess.com"]

[Event "Titled Tuesday Blitz December 13 Early 2022"]
[White "Shapiro, Daniel"]
[Black "Shuvalov, Evgenij"]
[WhiteFideId "2001780"]
[BlackFideId "4187237"]
[WhiteElo "2369"]
[BlackElo "2049"]
[Result "0-1"]
[Round "10"]
[TimeControl "180+1"]
[Date "2022.12.14"]
[WhiteClock "0:00:05"]
[BlackClock "0:00:31"]

1. d4 {[%clk 0:03:00]}  Nf6 {[%clk 0:02:59]} 2. c4 {[%clk 0:03:01]}  g6 {[%clk 0:02:59]} 3. Nc3 {[%clk 0:03:00]}  d5 {[%clk 0:02:59]} 4. Nf3 {[%clk 0:02:59]}  Bg7 {[%clk 0:02:59]} 5. Qb3 {[%clk 0:02:59]}  dxc4 {[%clk 0:02:57]} 6. Qxc4 {[%clk 0:03:00]}  O-O {[%clk 0:02:58]} 7. e4 {[%clk 0:03:01]}  a6 {[%clk 0:02:58]} 8. Qa4 {[%clk 0:02:59]}  c5 {[%clk 0:02:41]} 9. dxc5 {[%clk 0:02:43]}  Nfd7 {[%clk 0:02:39]} 10. Be3 {[%clk 0:02:36]}  Bxc3+ {[%clk 0:02:18]} 11. bxc3 {[%clk 0:02:34]}  Qc7 {[%clk 0:02:18]} 12. Qa3 {[%clk 0:02:24]}  Nc6 {[%clk 0:02:14]} 13. Be2 {[%clk 0:02:19]}  Nf6 {[%clk 0:02:11]} 14. Bd3 {[%clk 0:01:55]}  Ng4 {[%clk 0:02:07]} 15. Bh6 {[%clk 0:01:49]}  Nxh6 {[%clk 0:02:07]} 16. h3 {[%clk 0:01:45]}  f6 {[%clk 0:02:04]} 17. O-O {[%clk 0:01:44]}  Nf7 {[%clk 0:02:04]} 18. Be2 {[%clk 0:01:41]}  e5 {[%clk 0:01:59]} 19. Bc4 {[%clk 0:01:36]}  Kg7 {[%clk 0:01:58]} 20. Bd5 {[%clk 0:01:30]}  Ne7 {[%clk 0:01:44]} 21. Nd2 {[%clk 0:01:26]}  Rd8 {[%clk 0:01:31]} 22. c4 {[%clk 0:01:26]}  Nc6 {[%clk 0:01:27]} 23. f4 {[%clk 0:01:21]}  exf4 {[%clk 0:01:25]} 24. Rab1 {[%clk 0:01:15]}  g5 {[%clk 0:01:21]} 25. Rb6 {[%clk 0:01:09]}  Nfe5 {[%clk 0:01:20]} 26. h4 {[%clk 0:00:59]}  h6 {[%clk 0:01:17]} 27. g3 {[%clk 0:00:56]}  Nd7 {[%clk 0:01:06]} 28. Rb3 {[%clk 0:00:42]}  Nd4 {[%clk 0:01:04]} 29. Rd3 {[%clk 0:00:31]}  Ne2+ {[%clk 0:01:02]} 30. Kg2 {[%clk 0:00:29]}  Nxc5 {[%clk 0:00:58]} 31. Rdf3 {[%clk 0:00:24]}  Nxg3 {[%clk 0:00:46]} 32. hxg5 {[%clk 0:00:17]}  hxg5 {[%clk 0:00:43]} 33. Rxg3 {[%clk 0:00:12]}  fxg3 {[%clk 0:00:44]} 34. Nf3 {[%clk 0:00:07]}  Be6 {[%clk 0:00:37]} 35. Qc3 {[%clk 0:00:06]}  Bxd5 {[%clk 0:00:35]} 36. exd5 {[%clk 0:00:05]}  Ne4 {[%clk 0:00:33]} 37. Qd4 {[%clk 0:00:05]}  Qf4 {[%clk 0:00:31]} 0-1


[Site "https://www.chess.com"]